fUST/lending_fUST_20251215
["ID","MTS","AMOUNT","RATE_DAILY","PERIOD"]
[398521353,1765784132737,816.72,8.315e-05,2]
[398521354,1765784133394,1088.96,8.955e-05,2]
[398521355,1765784135669,-154.36,9.595e-05,2]
[398521356,1765784139982,-155.78,9.595e-05,2]
[398521357,1765784142556,-266.59628977,9.595e-05,2]
[398521358,1765784144806,-152.80000003,9.595e-05,2]
[398521359,1765784146110,-363.29,9.595e-05,2]
[398521360,1765784148259,-268.3637102,9.595e-05,2]
[398521361,1765784148281,-13.84404598,0.0001,2]
[398521362,1765784151732,-170.87224379,0.0001,2]
[398521363,1765784160666,-218.29978092,0.0001,2]
[398521364,1765784164051,-164.56013049,9.999e-05,2]
[398521365,1765784165605,-135.43986951,9.999e-05,2]
[398521366,1765784165626,-148.77729029,0.0001,2]
[398521367,1765784167063,-200.71541942,0.0001,2]
[398521368,1765784169204,-662.79750937,0.0001,2]
[398521369,1765784171264,-10000.01,0.0001,2]
[398521370,1765784171486,-3382.63095153,0.0001,2]
[398521371,1765784171513,-3234.74809694,0.0001,2]
[398521372,1765784176418,-186.8978193,0.0001005,2]
[398521373,1765784176451,-4081.06681041,0.00010199,2]
[398521374,1765784176488,-300.0,0.00010199,2]
[398521375,1765784176522,-300.0,0.00010199,2]
[398521376,1765784176672,-300.0,0.00010199,2]
[398521377,1765784176712,-300.0,0.00010199,2]
[398521378,1765784176747,-300.0,0.00010199,2]
[398521379,1765784176782,-300.0,0.00010199,2]
[398521380,1765784176819,-300.0,0.00010199,2]
[398521381,1765784176854,-300.0,0.00010199,2]
[398521382,1765784176890,-300.0,0.00010199,2]
[398521383,1765784176926,-300.0,0.00010199,2]
[398521384,1765784176962,-300.0,0.00010199,2]
[398521385,1765784176997,-300.0,0.00010199,2]
[398521386,1765784177032,-300.0,0.00010199,2]
[398521387,1765784177070,-300.0,0.00010199,2]
[398521388,1765784177105,-300.0,0.00010199,2]
[398521389,1765784177141,-600.0,0.00010199,2]
[398521390,1765784177710,-300.0,0.00010234,2]
[398521391,1765784177739,-1000.01,0.00010234,2]
[398521392,1765784180120,-219.75,0.0001,2]
[398521393,1765784180160,-219.75,0.000101,2]
[398521394,1765784180201,-219.75,0.000102,2]
[398521395,1765784180241,-219.75,0.000102,2]
[398521396,1765784180280,-333.42,0.00010234,2]
[398521397,1765784180315,-219.75,0.000103,2]
[398521398,1765784180351,-219.75,0.000104,2]
[398521399,1765784180388,-219.75,0.000105,2]
[398521400,1765784180424,-1905.67,0.00010874,2]
[398521401,1765784180455,-1200.0,0.00010999,2]
[398521402,1765784180603,-420.0,0.00010999,2]
[398521403,1765784180642,-720.0,0.00011219,2]
[398521404,1765784180680,-2720.01,0.00011242,2]
[398521405,1765784181075,-219.75,0.000106,2]
[398521406,1765784181087,-219.75,0.000107,2]
[398521407,1765784181096,-1885.82,0.00011242,2]
[398521408,1765784183696,-219.75,0.000107,2]
[398521409,1765784183732,-219.75,0.000108,2]
[398521410,1765784183769,-219.75,0.000109,2]
[398521411,1765784183804,-219.75,0.00011,2]
[398521412,1765784183839,-219.75,0.000111,2]
[398521413,1765784183875,-219.75,0.000111,2]
[398521414,1765784183909,-394.17,0.00011242,2]
[398521415,1765784183947,-2177.91,0.00011514,2]
[398521416,1765784183979,-220.53942677,0.0001205,2]
[398521417,1765784184011,-287.0,0.00012099,2]
[398521418,1765784184125,219.75,0.000112,2]
[398521419,1765784184498,219.75,0.000113,2]
[398521420,1765784184709,219.75,0.000114,2]
[398521421,1765784184901,219.75,0.000115,2]
[398521422,1765784184980,219.75,0.000116,2]
[398521423,1765784185147,105.02114646,0.000116,2]
[398521424,1765784185180,114.72885354,0.000116,2]
[398521425,1765784185575,219.75,0.000117,2]
[398521426,1765784186112,219.75,0.000118,2]
[398521427,1765784186304,219.75,0.000119,2]
[398521428,1765784186664,219.75,0.00012,2]
[398521429,1765784187006,219.75,0.00012,2]
[398521430,1765784200330,1073.79771525,0.00012099,2]
[398521431,1765784201398,-219.75,0.000121,2]
[398521432,1765784201439,-2450.15,0.00012153,2]
[398521433,1765784201473,-219.75,0.000122,2]
[398521434,1765784201508,-219.75,0.000123,2]
[398521435,1765784201540,-864.0,0.00012341,2]
[398521436,1765784208559,2053.21,0.00012341,2]
[398521437,1765784208587,2946.79,0.00012341,2]
[398521438,1765784208730,189.69,7.013e-05,2]
[398521439,1765784209086,379.38,7.651e-05,2]
[398521440,1765784209579,569.07,8.288e-05,2]
[398521441,1765784209991,758.76,8.926e-05,2]
[398521442,1765784210409,948.45,9.563e-05,2]
[398521443,1765784210826,1138.14,0.00010201,2]
[398521444,1765784211279,1327.83,0.00010839,2]
[398521445,1765784211695,1517.52,0.00011476,2]
[398521446,1765784212123,224.38,0.00012114,2]
[398521447,1765784212155,1482.83,0.00012114,2]
[398521448,1765784230743,153.82,0.0001,2]
[398521449,1765784231139,153.82,0.000101,2]
[398521450,1765784231514,153.82,0.000102,2]
[398521451,1765784231789,153.82,0.000103,2]
[398521452,1765784232076,153.82,0.000104,2]
[398521453,1765784232360,153.82,0.000106,2]
[398521454,1765784232672,153.82,0.000107,2]
[398521455,1765784232978,153.82,0.000108,2]
[398521456,1765784233443,153.82,0.000109,2]
[398521457,1765784233803,153.82,0.00011,2]
[398521458,1765784234113,153.82,0.000111,2]
[398521459,1765784234474,153.82,0.000112,2]
[398521460,1765784234769,153.82,0.000113,2]
[398521461,1765784235123,153.82,0.000114,2]
[398521462,1765784235397,153.82,0.000116,2]
[398521463,1765784235713,153.82,0.000117,2]
[398521465,1765784252035,-153.82,0.000118,2]
[398521466,1765784252073,-153.82,0.000119,2]
[398521467,1765784252109,-153.82,0.00012,2]
[398521468,1765784252146,-153.82,0.000121,2]
[398521469,1765784252183,-153.82,0.000122,2]
[398521470,1765784252223,-153.82,0.000123,2]
[398521471,1765784283328,150.0,5.2e-07,2]
[398521472,1765784284362,150.0,5.2e-07,2]
[398521473,1765784285423,150.0,5.2e-07,2]
[398521474,1765784288966,153.48,0.0001,2]
[398521475,1765784289357,153.48,0.000101,2]
[398521476,1765784289675,153.48,0.000102,2]
[398521477,1765784290286,153.48,0.000103,2]
[398521478,1765784290423,153.48,0.000104,2]
[398521479,1765784290747,153.48,0.000106,2]
[398521480,1765784291026,153.48,0.000107,2]
[398521481,1765784291523,153.48,0.000108,2]
[398521482,1765784291747,153.48,0.000109,2]
[398521483,1765784292021,153.48,0.00011,2]
[398521484,1765784292395,153.48,0.000111,2]
[398521485,1765784292722,153.48,0.000112,2]
[398521486,1765784293049,153.48,0.000113,2]
[398521487,1765784293632,153.48,0.000114,2]
[398521488,1765784293732,153.48,0.000116,2]
[398521489,1765784293952,153.48,0.000117,2]
[398521490,1765784299492,150.0,7.03e-05,2]
[398521491,1765784299886,275.04,7.669e-05,2]
[398521492,1765784300884,412.56,8.309e-05,2]
[398521493,1765784300994,550.09,8.948e-05,2]
[398521494,1765784301139,687.61,9.587e-05,2]
[398521495,1765784301554,825.13,0.00010226,2]
[398521496,1765784301976,962.65,0.00010865,2]
[398521497,1765784302392,1100.17,0.00011504,2]
[398521498,1765784302793,285.24,0.00012143,2]
[398521499,1765784302823,952.45,0.00012143,2]
[398521503,1765784311271,153.48,0.000118,2]
[398521504,1765784311537,153.48,0.000119,2]
[398521506,1765784312209,153.48,0.00012,2]
[398521508,1765784312384,153.48,0.000121,2]
[398521510,1765784312581,153.48,0.000122,2]
[398521513,1765784312836,153.48,0.000123,2]
[398521530,1765784348835,277.38,0.0001,2]
[398521531,1765784349167,277.38,0.000101,2]
[398521532,1765784349462,277.38,0.000102,2]
[398521533,1765784349780,277.38,0.000102,2]
[398521534,1765784350121,277.38,0.000103,2]
[398521535,1765784350492,277.38,0.000104,2]
[398521536,1765784350960,277.38,0.000105,2]
[398521537,1765784351120,277.38,0.000106,2]
[398521538,1765784351524,277.38,0.000107,2]
[398521539,1765784351808,277.38,0.000107,2]
[398521540,1765784352097,277.38,0.000108,2]
[398521541,1765784352395,277.38,0.000109,2]
[398521542,1765784352922,277.38,0.00011,2]
[398521543,1765784353052,277.38,0.000111,2]
[398521544,1765784353813,277.38,0.000111,2]
[398521545,1765784354899,277.38,0.000112,2]
[398521546,1765784355135,277.38,0.000113,2]
[398521547,1765784355499,277.38,0.000114,2]
[398521548,1765784355933,277.38,0.000115,2]
[398521549,1765784356264,277.38,0.000116,2]
[398521550,1765784356636,277.38,0.000116,2]
[398521551,1765784357018,277.38,0.000117,2]
[398521552,1765784357356,277.38,0.000118,2]
[398521553,1765784357922,277.38,0.000119,2]
[398521554,1765784358228,277.38,0.00012,2]
[398521555,1765784358500,277.38,0.00012,2]
[398521556,1765784358942,277.38,0.000121,2]
[398521557,1765784359236,277.38,0.000122,2]
[398521558,1765784359529,277.38,0.000123,2]
[398521559,1765784369276,-277.38,0.000124,2]
[398521560,1765784369325,-277.38,0.000124,2]
[398521561,1765784369366,-277.38,0.000125,2]
[398521562,1765784369405,-277.38,0.000126,2]
[398521563,1765784369441,-5000.0,0.00012623,2]
[398521564,1765784369478,-277.38,0.000127,2]
[398521565,1765784369515,-1375.21,0.00012782,2]
[398521566,1765784369551,-500.0,0.00012791,2]
[398521567,1765784369584,-479.53949733,0.00012791,2]
[398521568,1765784369632,-377.59347618,0.00012791,2]
[398521569,1765784369686,-277.38,0.000128,2]
[398521570,1765784369734,-292.98046911,0.00012861,2]
[398521571,1765784369773,-328.8020095,0.00012869,2]
[398521572,1765784369814,-277.38,0.000129,2]
[398521573,1765784369856,-277.38,0.000129,2]
[398521574,1765784370620,-8853.66909576,0.0001292,2]
[398521575,1765784375721,150.0,7.084e-05,2]
[398521576,1765784376284,253.58,7.728e-05,2]
[398521577,1765784376577,380.37,8.372e-05,2]
[398521578,1765784376997,507.16,9.016e-05,2]
[398521579,1765784377413,633.94,9.66e-05,2]
[398521580,1765784377828,30.94,0.00010304,2]
[398521581,1765784377858,729.79,0.00010304,2]
[398521582,1765784378232,887.52,0.00010948,2]
[398521583,1765784378643,1014.31,0.00011592,2]
[398521584,1765784379075,1141.1,0.00012236,2]
[398521585,1765784406551,-5000.0,0.00012751,2]
[398521586,1765784406578,-600.0,0.00012751,2]
[398521587,1765784406611,-1267.89,0.0001288,2]
[398521588,1765784406637,-500.0,0.00012897,2]
[398521589,1765784406667,-2348.17922773,0.000129,2]
[398521590,1765784406780,-30567.86154454,0.0001292,2]
[398521591,1765784408474,150.58,0.0001,2]
[398521592,1765784408963,150.58,0.000102,2]
[398521593,1765784409296,150.58,0.000103,2]
[398521594,1765784409702,150.58,0.000105,2]
[398521595,1765784412882,150.58,0.000106,2]
[398521596,1765784413219,150.58,0.000108,2]
[398521597,1765784413574,150.58,0.000109,2]
[398521598,1765784413787,150.58,0.000111,2]
[398521599,1765784414117,150.58,0.000112,2]
[398521600,1765784414403,150.58,0.000114,2]
[398521601,1765784414758,150.58,0.000115,2]
[398521602,1765784415559,150.58,0.000117,2]
[398521603,1765784415642,150.58,0.000118,2]
[398521604,1765784415771,150.58,0.00012,2]
[398521605,1765784416057,150.58,0.000122,2]
[398521606,1765784448894,-150.58,0.000123,2]
[398521607,1765784452016,150.0,7.127e-05,2]
[398521608,1765784452497,150.0,7.775e-05,2]
[398521609,1765784452901,150.0,8.423e-05,2]
[398521610,1765784453352,198.71,9.071e-05,2]
[398521611,1765784453798,248.39,9.719e-05,2]
[398521612,1765784454244,298.06,0.00010367,2]
[398521613,1765784454682,347.74,0.00011015,2]
[398521614,1765784455116,397.42,0.00011663,2]
[398521615,1765784455583,447.09,0.00012311,2]
[398521616,1765784466707,150.81,0.0001,2]
[398521617,1765784467008,150.81,0.000104,2]
[398521618,1765784467491,150.81,0.000107,2]
[398521619,1765784467653,150.81,0.000111,2]
[398521620,1765784467954,150.81,0.000115,2]
[398521621,1765784468267,150.81,0.000118,2]
[398521622,1765784468568,150.81,0.000122,2]
[398521624,1765784505125,675.72,0.0001,2]
[398521625,1765784514185,675.72,0.000102,2]
[398521626,1765784515319,675.72,0.000104,2]
[398521627,1765784515936,675.72,0.000106,2]
[398521628,1765784516824,675.72,0.000108,2]
[398521629,1765784517795,675.72,0.00011,2]
[398521630,1765784524632,150.0,7.094e-05,2]
[398521631,1765784524891,150.81,0.0001,2]
[398521632,1765784525048,150.0,7.739e-05,2]
[398521633,1765784525204,150.81,0.00011,2]
[398521634,1765784525497,150.0,8.384e-05,2]
[398521635,1765784525541,150.81,0.00012,2]
[398521636,1765784525936,150.0,9.029e-05,2]
[398521637,1765784526289,150.0,9.674e-05,2]
[398521638,1765784526711,150.0,0.00010319,2]
[398521639,1765784527100,150.0,0.00010964,2]
[398521640,1765784527532,154.33,0.00011609,2]
[398521641,1765784527934,173.63,0.00012254,2]
[398521643,1765784584982,159.92,0.0001,2]
[398521644,1765784585538,159.92,0.00012,2]
[398521645,1765784611778,51.22,0.00012341,2]
[398521646,1765784611806,4948.78,0.00012341,2]
[398521647,1765784634950,5000.0,0.00012341,2]
[398521648,1765784644421,51.23,0.0001,2]
[398521649,1765784644457,103.15,0.0001,2]
[398521650,1765784645343,154.38,0.000102,2]
[398521651,1765784645414,154.38,0.000104,2]
[398521652,1765784645686,154.38,0.000106,2]
[398521653,1765784645765,154.38,0.000108,2]
[398521654,1765784646182,154.38,0.00011,2]
[398521655,1765784646499,154.38,0.000112,2]
[398521656,1765784646854,154.38,0.000114,2]
[398521657,1765784647241,154.38,0.000116,2]
[398521658,1765784647677,154.38,0.000118,2]
[398521659,1765784647971,154.38,0.00012,2]
[398521660,1765784648261,154.38,0.000122,2]
[398521661,1765784658574,5000.0,0.00012341,2]
[398521664,1765784681503,3198.68,0.00012341,2]
[398521665,1765784681534,1801.32,0.00012341,2]
[398521666,1765784693381,-190.65011717,0.000124,2]
[398521667,1765784693412,-154.38,0.000124,2]
[398521668,1765784693437,-3075.9263314,0.00012566,2]
[398521669,1765784693465,-300.0,0.0001259,2]
[398521670,1765784693495,-7477.0704973,0.00012591,2]
[398521671,1765784693525,-154.38,0.000126,2]
[398521672,1765784693550,-300.0,0.0001275,2]
[398521673,1765784693580,-154.38,0.000128,2]
[398521674,1765784693607,-186.83544964,0.00012812,2]
[398521675,1765784693633,-397.9302561,0.000129,2]
[398521676,1765784693672,-397.9302561,0.000129,2]
[398521677,1765784694057,-421.03418458,0.000129,2]
[398521678,1765784705982,154.03,0.000101,2]
[398521679,1765784706284,154.03,0.000105,2]
[398521680,1765784706669,154.03,0.000109,2]
[398521681,1765784707058,154.03,0.000113,2]
[398521683,1765784707676,154.03,0.000117,2]
[398521684,1765784707763,154.03,0.000121,2]
[398521691,1765784765268,154.03,0.000101,2]
[398521692,1765784765682,154.03,0.000111,2]
[398521693,1765784765999,154.03,0.000121,2]
[398521694,1765784825170,154.03,0.000101,2]
[398521725,1765785032239,-262.767,0.00012622,2]
[398521726,1765785038095,-937.233,0.00012622,2]
[398521727,1765785038105,-3210.85767191,0.00012623,2]
[398521728,1765785038115,-1789.14232809,0.00012623,2]
[398521729,1765785038124,-599.0,0.00012623,2]
[398521730,1765785038134,-190.79514973,0.00012771,2]
[398521731,1765785038144,-500.0,0.00012884,2]
[398521732,1765785038153,-1591.72111068,0.000129,2]
[398521733,1765785038190,-583.41471061,0.000129,2]
[398521734,1765785038199,-300.0,0.00012911,2]
[398521735,1765785038208,-2773.56790519,0.00012912,2]
[398521736,1765785038218,-574.12855637,0.00012912,2]
[398521737,1765785038228,-180.92761442,0.00012912,2]
[398521738,1765785038240,-218.07238558,0.00012912,2]
[398521739,1765785038250,-455.27761442,0.0001292,2]
[398521740,1765785038261,-863.94,0.0001292,2]
[398521856,1765785040425,-500.0,0.00012624,2]
[398521859,1765785040435,-19545.47275609,0.0001292,2]
[398521869,1765785040954,-0.00696872,0.0001292,2]
[398521871,1765785040965,-2566.07621776,0.0001292,2]
[398522124,1765785043295,-98.08698053,0.00012791,2]
[398523532,1765785083860,-500.0,0.0001275,2]
[398523533,1765785083895,-622.5554787,0.0001275,2]
[398523534,1765785083933,-500.0,0.0001275,2]
[398523535,1765785083972,-251.5391672,0.0001275,2]
[398523536,1765785104851,150.0,7.097e-05,2]
[398523537,1765785105679,150.0,7.743e-05,2]
[398523538,1765785106599,150.0,8.388e-05,2]
[398523539,1765785110463,409.4095246,0.00011955,2]
[398523541,1765785245271,5000.0,0.0001275,2]
[398523542,1765785268838,392.4111836,0.0001275,2]
[398523543,1765785268865,4607.5888164,0.0001275,2]
[398523544,1765785293083,5000.0,0.0001275,2]
[398523545,1765785315878,392.4211836,0.0001275,2]
[398523546,1765785315907,4607.5788164,0.0001275,2]
[398523548,1765785362072,158.17,0.0001,2]
[398523549,1765785384572,-5000.0,0.00012643,2]
[398523550,1765785400369,0.01,0.0001275,2]
[398523551,1765785400398,2076.31339966,0.0001275,2]
[398523552,1765785401333,-186.97924674,0.0001277,2]
[398523553,1765785401364,-319.33496789,0.00012791,2]
[398523554,1765785401395,-1200.0,0.00012819,2]
[398523555,1765785401428,-300.0,0.00012819,2]
[398523556,1765785401463,-2651.50902494,0.0001282,2]
[398523557,1765785401765,-684.36352086,0.0001282,2]
[398523558,1765785422177,-160.93,0.0001,2]
[398523559,1765785422214,-4678.15,0.00012692,2]
[398523561,1765785520697,-160.93,0.0001,2]
[398523562,1765785520731,-1191.8889841,0.00011844,2]
[398523563,1765785520764,-300.0,0.0001186,2]
[398523564,1765785524579,-1910.16071432,0.00011861,2]
[398523565,1765785529325,-10000.01,0.00011861,2]
[398523566,1765785529563,-3541.06690038,0.00011861,2]
[398523567,1765785529595,-937.47366659,0.00012097,2]
[398523568,1765785529628,-300.0,0.00012097,2]
[398523569,1765785529662,-142.92886606,0.00012097,2]
[398523570,1765785529755,-157.07113394,0.00012097,2]
[398523571,1765785529796,-300.0,0.00012097,2]
[398523572,1765785529831,-300.0,0.00012097,2]
[398523573,1765785530133,-300.0,0.00012097,2]
[398523574,1765785530171,-300.0,0.00012097,2]
[398523575,1765785530213,-300.0,0.00012097,2]
[398523576,1765785530253,-300.0,0.00012097,2]
[398523577,1765785530289,-300.0,0.00012097,2]
[398523578,1765785530326,-300.0,0.00012097,2]
[398523579,1765785530361,-300.0,0.00012097,2]
[398523580,1765785530396,-300.0,0.00012097,2]
[398523581,1765785530432,-300.0,0.00012097,2]
[398523582,1765785530467,-300.0,0.00012097,2]
[398523583,1765785530500,-300.0,0.00012097,2]
[398523584,1765785530533,-600.0,0.00012338,2]
[398523585,1765785530566,-227.50673439,0.00012484,5]
[398523586,1765785530683,-544.99653122,0.00012484,5]
[398523587,1765785536580,5000.0,0.00012643,2]
[398523588,1765785542448,161.26,0.0001,2]
[398523589,1765785542744,161.26,0.000108,2]
[398523590,1765785543035,161.26,0.000116,2]
[398523591,1765785543357,161.26,0.000124,2]
[398523592,1765785554395,198.02541624,0.0001186,2]
[398523593,1765785554432,500.0,0.0001186,2]
[398523594,1765785554475,156.66967847,0.0001186,2]
[398523595,1765785554753,500.0,0.0001186,2]
[398523596,1765785554795,500.0,0.0001186,2]
[398523597,1765785554884,500.0,0.0001186,2]
[398523598,1765785554929,454.61073366,0.0001186,2]
[398523599,1765785554969,165.20621247,0.0001186,2]
[398523600,1765785555063,500.0,0.0001186,2]
[398523601,1765785555238,500.0,0.0001186,2]
[398523602,1765785555925,500.0,0.0001186,2]
[398523603,1765785556209,500.0,0.0001186,2]
[398523604,1765785556246,500.0,0.0001186,2]
[398523605,1765785556295,500.0,0.0001186,2]
[398523606,1765785556342,500.0,0.0001186,2]
[398523607,1765785556380,150.0,7.057e-05,2]
[398523608,1765785556424,500.0,0.0001186,2]
[398523609,1765785556460,500.0,0.0001186,2]
[398523610,1765785556493,500.0,0.0001186,2]
[398523611,1765785556542,568.95210135,0.0001186,2]
[398523612,1765785556599,500.0,0.0001186,2]
[398523613,1765785556759,150.0,7.699e-05,2]
[398523614,1765785557140,164.73,8.34e-05,2]
[398523615,1765785557556,219.63,8.982e-05,2]
[398523616,1765785557974,272.18585781,9.623e-05,2]
[398523617,1765785558011,2.35414219,9.623e-05,2]
[398523618,1765785558390,329.45,0.00010265,2]
[398523619,1765785558821,384.36,0.00010906,2]
[398523620,1765785559218,439.27,0.00011548,2]
[398523621,1765785560130,494.18,0.00012189,2]
[398523622,1765785604183,160.95,0.0001,2]
[398523623,1765785604542,160.95,0.00012,2]
[398523624,1765785630772,150.0,7.162e-05,2]
[398523625,1765785631207,150.0,7.813e-05,2]
[398523626,1765785631616,150.0,8.464e-05,2]
[398523627,1765785632222,150.0,9.115e-05,2]
[398523628,1765785632623,150.0,9.766e-05,2]
[398523629,1765785633045,150.0,0.00010417,2]
[398523630,1765785633668,152.18,0.00011068,2]
[398523631,1765785633953,173.91,0.00011719,2]
[398523632,1765785634301,195.65,0.0001237,2]
[398523635,1765785699542,150.0,7.141e-05,2]
[398523638,1765785798110,-220.1409825,0.00012484,5]
[398523639,1765785812568,5000.0,0.00012484,2]
[398523640,1765785828362,4559.728035,0.00012484,2]
[398523641,1765785828390,169.311965,0.00012484,2]
[398523642,1765785836356,5000.0,0.00012484,2]
[398523643,1765785859077,4830.698035,0.00012484,2]
[398523644,1765785859105,169.301965,0.00012484,2]
[398523645,1765785882967,5000.0,0.00012484,2]
[398523650,1765785892416,150.0,7.144e-05,2]
[398523651,1765785892827,150.0,7.794e-05,2]
[398523652,1765785893347,150.0,8.443e-05,2]
[398523653,1765785893665,150.0,9.093e-05,2]
[398523654,1765785894099,187.36,9.742e-05,2]
[398523655,1765785894549,224.83,0.00010391,2]
[398523656,1765785895506,262.3,0.00011041,2]
[398523657,1765785895938,299.77,0.0001169,2]
[398523658,1765785896362,337.24,0.0001234,2]
[398523659,1765785906927,2919.208035,0.00012484,2]
[398523660,1765785906956,2080.791965,0.00012484,2]
[398523667,1765785931001,5000.0,0.00012484,2]
[398523668,1765785954340,2919.218035,0.00012484,2]
[398523669,1765785954371,2080.781965,0.00012484,2]
[398523670,1765785962452,162.28,0.0001,2]
[398523671,1765785964861,150.0,7.071e-05,2]
[398523672,1765785965267,150.0,7.714e-05,2]
[398523673,1765785965751,150.0,8.357e-05,2]
[398523674,1765785966161,150.0,9e-05,2]
[398523675,1765785966652,150.0,9.643e-05,2]
[398523676,1765785966961,174.89,0.00010286,2]
[398523677,1765785967384,204.04,0.00010929,2]
[398523678,1765785967887,233.19,0.00011571,2]
[398523679,1765785968305,262.34,0.00012214,2]
[398523680,1765785976933,5000.0,0.00012484,2]
[398523681,1765786000259,1132.488035,0.00012484,2]
[398523682,1765786000288,3867.511965,0.00012484,2]
[398523683,1765786018701,150.0,5.2e-07,2]
[398523684,1765786019846,150.0,5.2e-07,2]
[398523685,1765786023838,5000.0,0.00012484,2]
[398523686,1765786035131,150.0,7.055e-05,2]
[398523687,1765786035565,150.0,7.696e-05,2]
[398523688,1765786036022,150.0,8.338e-05,2]
[398523689,1765786036450,150.0,8.979e-05,2]
[398523690,1765786036872,150.0,9.621e-05,2]
[398523691,1765786037422,82.498035,0.00010262,2]
[398523692,1765786037454,67.501965,0.00010262,2]
[398523693,1765786037820,152.86,0.00010903,2]
[398523694,1765786038242,174.7,0.00011545,2]
[398523695,1765786038649,196.54,0.00012186,2]
[398523697,1765786043467,-2491.4,0.00012524,16]
[398523698,1765786046592,5000.0,0.00012484,2]
[398523699,1765786066080,-4373.3328,0.00012524,16]
[398523700,1765786069312,-1253.3444,0.00012524,16]
[398523701,1765786069345,-183.23966181,0.00012524,2]
[398523702,1765786069378,-300.0,0.00012642,2]
[398523703,1765786069409,-1000.0,0.00012643,2]
[398523704,1765786069439,-1000.0,0.00012643,2]
[398523705,1765786069470,-1000.0,0.00012643,2]
[398523706,1765786075290,-5000.0,0.00012399,2]
[398523707,1765786078362,-1000.0,0.00012643,2]
[398523708,1765786078394,-1000.0,0.00012643,2]
[398523709,1765786078427,-1000.0,0.00012643,2]
[398523710,1765786078460,-1000.0,0.00012643,2]
[398523711,1765786078493,-1000.0,0.00012643,2]
[398523712,1765786081598,-1000.0,0.00012643,2]
[398523713,1765786081634,-1000.0,0.00012643,2]
[398523714,1765786081669,-1000.0,0.00012643,2]
[398523715,1765786081704,-1000.0,0.00012643,2]
[398523716,1765786081739,-1000.0,0.00012643,2]
[398523717,1765786084850,-159.14,0.0001,2]
[398523718,1765786084896,-159.14,0.00011,2]
[398523719,1765786084942,-159.14,0.00012,2]
[398523720,1765786084983,-404.80536867,0.00012643,2]
[398523721,1765786094004,5000.0,0.00012643,2]
[398523722,1765786095874,3235.55926266,0.00011818,2]